Cogmind - Beta 16 @@@ ROGUE MODE // 2025.12.17 @ 06:11:35 Player: Lauriboy Result: Destroyed by Striker with Compact Linear Accelerator Performance ------------- Evolutions (7) 3500 Regions Visited (16) 3200 Robots Destroyed (45) 225 Value Destroyed (1231) 1231 Prototype IDs (17) 340 Alien Tech Used (0) 0 Bonus (329) 329 TOTAL SCORE: 8825 Bonus ------- High Alert Combat Kills 29 Met Data Miner 300 Cogmind --------- Core Integrity 0/1300 Matter 106/300 Energy 100/100 System Corruption 12% Temperature Cool (0) Movement Core (50) Location -3/Testing Parts ------- > --- POWER (2) -------- (None) > --- PROPULSION (6) --- (None) > --- UTILITY (10) ----- (None) > --- WEAPON (3) ------- (None) > --- INVENTORY (5) ---- Armored Medium Treads High-capacity Storage Unit Peak State ------------ > --- POWER ------------ Neutrino Core Micro Antimatter Reactor > --- PROPULSION ------- Centrium Wheel Centrium Wheel Centrium Wheel Centrium Wheel Centrium Wheel Centrium Wheel > --- UTILITY ---------- High-capacity Storage Unit Advanced Terrain Scan Processor Advanced Transmission Jammer Improved Reaction Control System Graphene Brace > --- WEAPON ----------- Advanced Datajack Heavy Flail > --- INVENTORY -------- Armored Medium Treads Centrium Wheel Centrium Wheel Q-thruster [Rating: 92] Favorites ----------- Power Ion Engine Engine Ion Engine Power Core Light Nuclear Core Reactor Micro Antimatter Reactor Propulsion Armored Treads Treads Armored Treads Leg Aluminum Leg Wheel Centrium Wheel Flight Unit Improved VTOL Module Utility Experimental Sensor Array Device Experimental Sensor Array Storage Large Storage Unit Processor Advanced Terrain Scan Processor Hackware Hacking Suite Protection Hardened Heavy Armor Plating Weapon Medium Laser Energy Gun Medium Laser Energy Cannon Matter Neutralizer Ballistic Gun High-powered Shotgun Launcher Grenade Launcher Impact Weapon Power Maul Slashing Weapon Axe Special Melee Weapon Advanced Datajack Build | -11 -10 -10 -9 -8 -7 -7 -7 -6 -6 -6 -6 -5 -4 -4 -3 -3 ------- Run | Yrd Mat Min Mat Mat Fac Low Dat Pro Fac Low Low Fac Fac Ext Res Tes Slots Evolved 14 | . . . 2 2 2 . . . 2 . . 2 2 . 2 . Power 1 | . . . . . 1 . . . . . . . . . . . Propulsion 4 | . . . 2 . . . . . 2 . . . . . . . Utility 8 | . . . . 1 1 . . . . . . 2 2 . 2 . Weapon 1 | . . . . 1 . . . . . . . . . . . . Parts Attached 84 | 6 . 1 12 5 24 . . 1 . 1 1 6 6 1 16 4 Power 11 | 1 . . 1 . 4 . . . . 1 . 1 . 1 2 . Engine 4 | 1 . . 1 . 2 . . . . . . . . . . . Core 5 | . . . . . 2 . . . . 1 . 1 . . 1 . Reactor 2 | . . . . . . . . . . . . . . 1 1 . Propulsion 39 | 2 . . 8 . 9 . . 1 . . 1 5 3 . 6 4 Treads 5 | . . . 4 . 1 . . . . . . . . . . . Leg 2 | 2 . . . . . . . . . . . . . . . . Wheel 8 | . . . . . . . . . . . . . . . 6 2 Hover . | . . . . . . . . . . . . . . . . . Flight 24 | . . . 4 . 8 . . 1 . . 1 5 3 . . 2 Utility 21 | 1 . 1 1 3 7 . . . . . . . 2 . 6 . Device 9 | . . 1 . 2 2 . . . . . . . 1 . 3 . Storage 4 | 1 . . 1 . . . . . . . . . 1 . 1 . Processor 1 | . . . . . . . . . . . . . . . 1 . Hackware 3 | . . . . . 2 . . . . . . . . . 1 . Protection 4 | . . . . 1 3 . . . . . . . . . . . Artifact . | . . . . . . . . . . . . . . . . . Weapon 13 | 2 . . 2 2 4 . . . . . . . 1 . 2 . Energy Gun 5 | 2 . . 1 1 1 . . . . . . . . . . . Energy Cannon 1 | . . . . . . . . . . . . . 1 . . . Ballistic Gun 1 | . . . . 1 . . . . . . . . . . . . Ballistic Cannon . | . . . . . . . . . . . . . . . . . Launcher 1 | . . . 1 . . . . . . . . . . . . . Special Weapon . | . . . . . . . . . . . . . . . . . Impact Weapon 3 | . . . . . 2 . . . . . . . . . 1 . Slashing Weapon 1 | . . . . . 1 . . . . . . . . . . . Piercing Weapon . | . . . . . . . . . . . . . . . . . Special Melee Weapon 1 | . . . . . . . . . . . . . . . 1 . Unidentified Prototypes 4 | . . 1 . . 2 . . . . . . . . 1 . . Parts Lost 57 | . . . 2 . 17 . . 3 1 2 . 14 1 5 10 2 Power 9 | . . . 1 . 2 . . 1 . 1 . 2 . . 2 . Propulsion 27 | . . . . . 7 . . 1 . 1 . 8 . 3 5 2 Utility 12 | . . . . . 4 . . 1 1 . . 2 1 1 2 . Weapon 9 | . . . 1 . 4 . . . . . . 2 . 1 1 . Highest Loss Streak 12 | . . . 1 . 12 . . 3 1 1 . 10 1 5 9 1 To Critical Strikes . | . . . . . . . . . . . . . . . . . Average Backups 7 | 2 7 7 7 11 10 5 5 4 3 4 5 3 4 7 4 2 Power 1 | . 1 1 1 1 1 . . . . . . . . 1 . . Propulsion 2 | 1 3 4 2 2 2 3 3 2 1 2 2 1 1 1 3 1 Utility 1 | . . . 1 3 3 . . . . 1 1 1 2 4 . . Weapon 1 | . 1 1 2 1 2 2 2 2 1 1 2 . . 1 . . Tool/Special . | . . . . . . . . . . . . . . . . . Unused Backups 30 | . 6 2 1 1 14 . . . . . . 2 . 3 . 1 Power 5 | . . . 1 . 3 . . . . . . . . 1 . . Propulsion 11 | . 6 . . . 3 . . . . . . 1 . . . 1 Utility 7 | . . 1 . 1 4 . . . . . . . . 1 . . Weapon 6 | . . 1 . . 3 . . . . . . 1 . 1 . . Tool/Special 1 | . . . . . 1 . . . . . . . . . . . Average Slot Usage (%) 69 | . 85 94 97 99 71 76 76 63 55 48 50 40 17 23 52 8 Engine 7 | . 14 14 10 9 7 7 7 7 6 4 . . . . . . Core 1 | . . . . . 3 7 7 . . 1 6 3 . . 2 . Treads 12 | . . . 38 36 18 . . . . . . . . . . . Leg 4 | . 28 28 . . . . . . . . . . . . . . Wheel 1 | . . . . . . . . . . . . . . . 24 1 Flight 7 | . . . 2 . 5 30 30 30 26 22 23 22 9 13 . 2 Device 7 | . . 9 11 16 7 15 15 9 6 6 6 4 2 . 6 1 Storage 6 | . 14 14 11 9 4 . . . . . . . 3 5 3 1 Hackware 1 | . . . . . . 15 15 15 8 6 6 3 . . . . Protection 1 | . . . . 1 5 . . . . . . . . . . . Energy Gun 9 | . 28 28 18 13 7 . . . . . . . . . . . Ballistic Gun 1 | . . . . 4 4 . . . . . . . . . . . Launcher 1 | . . . 3 9 1 . . . . . . . . . . . Impact Weapon 1 | . . . . . . . . . 6 6 6 4 . . 1 . Peak Build Rating 92 | 6 6 15 27 34 46 37 37 37 36 34 35 52 53 56 92 44 Average Rating 29 | 4 6 12 24 31 32 37 37 32 34 31 33 36 32 45 71 8 On Entrance 24 | . 6 6 15 27 30 37 37 37 32 34 31 35 1 48 2 31 Avg Prop Armor Cover (%) 6 | . . . . . . . . . . . . 2 . 8 9 . Naked Turns 51 | . . . . . . . . . . . . 1 . 2 4 44 Heaviest Build 70 | 14 14 15 31 39 64 19 19 19 16 16 11 20 24 20 70 45 Greatest Support 96 | 20 20 20 80 80 80 20 20 21 21 21 24 41 41 26 96 48 Greatest Overweight (x) 13 | 1 . . 4 . 2 . . . . . . . . 6 2 13 Average Overweight (x) . | . . . . . . . . . . . . . . . . . Largest Inventory Capacity 20 | 8 8 8 15 15 15 5 5 5 5 5 5 5 10 10 20 20 Average Capacity 9 | 7 8 8 9 15 11 5 5 5 5 5 5 5 8 9 17 8 Most Carried 15 | 6 8 8 9 15 15 5 5 5 5 5 5 5 8 8 6 4 Average Carried 7 | 2 7 7 7 11 10 5 5 4 3 4 5 4 5 7 4 2 Final Capacity 20 | 8 8 8 15 15 5 5 5 5 5 5 5 5 10 5 20 5 Final Carried 15 | 6 8 8 8 15 5 5 5 4 5 5 5 3 6 5 4 2 Class Distribution -------------------- 57% | Mutant 13% | Skirmisher 11% | Sprinter 7% | Scavenger-Tank 7% | Hacker-Sprinter Dominant Class ---------------- Mutant | -10/Materials Mutant | -10/Mines Mutant | -9/Materials Skirmisher | -8/Materials Mutant | -7/Factory Hacker-Sprinter | -7/Lower Caves Hacker-Sprinter | -7/Data Miner Hacker-Sprinter | -6/Proximity Caves Sprinter | -6/Factory Sprinter | -6/Lower Caves Sprinter | -6/Lower Caves Mutant | -5/Factory Mutant | -4/Factory Mutant | -4/Extension Mutant | -3/Research Mutant | -3/Testing Resources | -11 -10 -10 -9 -8 -7 -7 -7 -6 -6 -6 -6 -5 -4 -4 -3 -3 ----------- Run | Yrd Mat Min Mat Mat Fac Low Dat Pro Fac Low Low Fac Fac Ext Res Tes Matter Collected 1497 | 225 183 12 194 227 381 . . . . 63 . 191 20 1 . . Remotely . | . . . . . . . . . . . . . . . . . Salvage Created 1524 | . 193 . 551 162 269 . . . . . . 327 . 22 . . Parts 73 | . 13 . 34 8 14 . . . . . . 3 . 1 . . Haulers Intercepted . | . . . . . . . . . . . . . . . . . Recyclers Shooed 1 | . . . . . 1 . . . . . . . . . . . Parts Field Recycled . | . . . . . . . . . . . . . . . . . Retrieved Matter . | . . . . . . . . . . . . . . . . . Parts Self-Destructed 4 | . . . . . . . . 4 . . . . . . . . Prevented . | . . . . . . . . . . . . . . . . . Parts Restored . | . . . . . . . . . . . . . . . . . Kills | -11 -10 -10 -9 -8 -7 -7 -7 -6 -6 -6 -6 -5 -4 -4 -3 -3 ------- Run | Yrd Mat Min Mat Mat Fac Low Dat Pro Fac Low Low Fac Fac Ext Res Tes Combat Hostiles Destroyed 31 | . 5 . 17 3 5 . . . . . . . . 1 . . Guns 24 | . 4 . 12 3 5 . . . . . . . . . . . AOE 5 | . . . 5 . . . . . . . . . . . . . Classes Destroyed 12 | . 3 . 4 . 4 . . . . . . 1 . . . . Builder 1 | . . . 1 . . . . . . . . . . . . . Tunneler 1 | . . . 1 . . . . . . . . . . . . . Recycler 3 | . . . . . 1 . . . . . . 2 . . . . Mechanic 1 | . . . . . . . . . . . . 1 . . . . Watcher 8 | . 2 . 3 1 1 . . . . . . 1 . . . . Swarmer 12 | . 3 . 8 . . . . . . . . . . 1 . . Grunt 12 | . 2 . 5 3 2 . . . . . . . . . . . Brawler 1 | . . . 1 . . . . . . . . . . . . . Sentry 3 | . . . 3 . . . . . . . . . . . . . Hunter 1 | . . . . . 1 . . . . . . . . . . . Programmer 1 | . . . . . 1 . . . . . . . . . . . Heavy 1 | . . . . . 1 . . . . . . . . . . . Best Kill Streak 9 | . 3 . 9 3 2 . . . . . . 2 . 1 . . Combat Bots Only 7 | . 3 . 7 3 1 . . . . . . . . 1 . . Max Kills in Single Turn 2 | . 1 . 2 1 1 . . . . . . 2 . 1 . . Gunslinging . | . . . . . . . . . . . . . . . . . Exploded 2 | . . . 2 . . . . . . . . . . . . . Melee . | . . . . . . . . . . . . . . . . . Uniques/NPCs Destroyed . | . . . . . . . . . . . . . . . . . Combat | -11 -10 -10 -9 -8 -7 -7 -7 -6 -6 -6 -6 -5 -4 -4 -3 -3 -------- Run | Yrd Mat Min Mat Mat Fac Low Dat Pro Fac Low Low Fac Fac Ext Res Tes Hostile Shots Fired 901 | . 19 . 104 12 289 . . 32 10 21 . 161 17 56 137 43 Missed 345 | . 7 . 29 2 95 . . 18 4 13 . 83 10 23 41 20 Hits 556 | . 12 . 75 10 194 . . 14 6 8 . 78 7 33 96 23 Melee 2 | . . . . . . . . . . . . . 2 . . . Projectile 554 | . 12 . 75 10 194 . . 14 6 8 . 78 5 33 96 23 AOE 2 | . . . . . . . . . . . . . 2 . . . Critical Strikes 18 | . . . . . 4 . . . . 1 . 2 3 2 1 5 Actively Blocked 1 | . . . . . . . . . . . . . . . 1 . Damage Taken 10341 | . 136 . 958 155 2379 . . 233 65 182 . 1659 370 969 2664 571 Core 3670 | . 54 . 63 . 574 . . 81 18 92 . 862 160 439 850 477 Absorbed by Shields . | . . . . . . . . . . . . . . . . . Redirected to Shielding 113 | . . . . 49 64 . . . . . . . . . . . Ignored by Resistances 73 | . . . . . 73 . . . . . . . . . . . Regen/Repaired (Parts) 41 | . . . . . . . . . 41 . . . . . . . Core Remaining (%) 64 | 100 . 78 84 100 . . . 6 . . 87 13 . 47 . . Volleys Fired 109 | . 13 . 54 14 25 . . . . . . . . 3 . . Largest 3 | . 2 . 2 2 3 . . . . . . . . 1 . . Hottest 155 | . 100 . 100 75 155 . . . . . . . . 105 . . Shots Fired 210 | . 26 . 89 28 64 . . . . . . . . 3 . . Gun 199 | . 26 . 81 28 64 . . . . . . . . . . . Cannon 3 | . . . . . . . . . . . . . . 3 . . Launcher 8 | . . . 8 . . . . . . . . . . . . . Special . | . . . . . . . . . . . . . . . . . Kinetic 39 | . . . . 14 25 . . . . . . . . . . . Thermal 163 | . 26 . 81 14 39 . . . . . . . . 3 . . Explosive 8 | . . . 8 . . . . . . . . . . . . . Electromagnetic . | . . . . . . . . . . . . . . . . . Robot Hit Streak 17 | . 5 . 17 6 8 . . . . . . . . 1 . . Robot Miss Streak 8 | . 3 . 4 8 4 . . . . . . . . 3 . . Penetration Max . | . . . . . . . . . . . . . . . . . Secondary Targets . | . . . . . . . . . . . . . . . . . Shots Hit Robots 146 | . 14 . 59 16 47 . . . . . . 2 . 1 7 . Core Hits 73 | . 7 . 34 11 19 . . . . . . 2 . . . . Critical Kills 1 | . . . . . . . . . . . . . . 1 . . Critical Parts Destroyed . | . . . . . . . . . . . . . . . . . Critical Strikes 14 | . 3 . 6 . 4 . . . . . . . . 1 . . Burn 13 | . 3 . 6 . 4 . . . . . . . . . . . Meltdown 1 | . . . . . . . . . . . . . . 1 . . Melee Attacks 31 | . . . . . 5 . . . 4 . . 10 . . 12 . Impact 27 | . . . . . 1 . . . 4 . . 10 . . 12 . Slashing 4 | . . . . . 4 . . . . . . . . . . . Piercing . | . . . . . . . . . . . . . . . . . Sneak Attacks 1 | . . . . . . . . . . . . 1 . . . . Combat Hostiles . | . . . . . . . . . . . . . . . . . Follow-up Attacks . | . . . . . . . . . . . . . . . . . Damage Inflicted 3283 | . 172 . 1276 248 955 . . . . . . 377 . 38 209 8 Guns 1972 | . 172 . 749 248 803 . . . . . . . . . . . Cannons 38 | . . . . . . . . . . . . . . 38 . . Explosions 710 | . . . 527 . . . . . . . . 183 . . . . Melee 550 | . . . . . 147 . . . . . . 194 . . 209 . Ramming 13 | . . . . . 5 . . . . . . . . . . 8 Kinetic 534 | . . . . 160 374 . . . . . . . . . . . Thermal 1476 | . 172 . 749 88 429 . . . . . . . . 38 . . Explosive 710 | . . . 527 . . . . . . . . 183 . . . . Electromagnetic . | . . . . . . . . . . . . . . . . . Impact 453 | . . . . . 50 . . . . . . 194 . . 209 . Slashing 97 | . . . . . 97 . . . . . . . . . . . Piercing . | . . . . . . . . . . . . . . . . . Highest Corruption 12 | . . . 3 . 1 1 1 1 . . . 5 . . 2 12 Average Corruption 2 | . . . 2 . 1 1 1 1 . . . 5 . . 1 4 Corruption Purged . | . . . . . . . . . . . . . . . . . Corruption Blocked . | . . . . . . . . . . . . . . . . . Effects 9 | . . . 1 . 1 1 . . . . . 3 . . . 3 Matter Fused 4 | . . . 1 . . . . . . . . 1 . . . 2 Heat Flow Errors 2 | . . . . . . . . . . . . 1 . . . 1 Data Loss (minor) 1 | . . . . . . . . . . . . 1 . . . . Data Loss (major) 2 | . . . . . 1 1 . . . . . . . . . . Overload Shots . | . . . . . . . . . . . . . . . . . Overflow Damage 202 | . . . 5 . 28 . . . . . . 156 . 13 . . Projectiles 23 | . . . . . . . . . . . . 10 . 13 . . Explosions 37 | . . . 5 . . . . . . . . 32 . . . . Melee 142 | . . . . . 28 . . . . . . 114 . . . . Knockbacks 3 | . . . . . . . . . . . . 3 . . . . Impact 2 | . . . . . . . . . . . . 2 . . . . Kinetic . | . . . . . . . . . . . . . . . . . Secondary 1 | . . . . . . . . . . . . 1 . . . . Self-Inflicted Damage 392 | . . . 87 . . . . . . . . 301 . . . 4 Shots 6 | . . . 3 . . . . . . . . 3 . . . . Rammed 4 | . . . . . . . . . . . . . . . . 4 Targets Rammed 5 | . . . . . 1 . . . . . . . . . . 4 Kicked . | . . . . . . . . . . . . . . . . . Crushed 1 | . . . . . 1 . . . . . . . . . . . Highest Temperature 648 | . 276 . 270 . 648 . . 9 . . . 255 . 78 . 232 Average Temperature 141 | . 98 . 84 . 223 . . 6 . . . 67 . 40 . 117 Received Heat Transfer 1365 | . 54 . 270 90 564 . . 78 9 21 . 63 18 81 117 . Effects 21 | . . . 2 . 19 . . . . . . . . . . . Shutdowns 5 | . . . . . 5 . . . . . . . . . . . Energy Bleed 1 | . . . . . 1 . . . . . . . . . . . Interference 4 | . . . 2 . 2 . . . . . . . . . . . Matter Decay 1 | . . . . . 1 . . . . . . . . . . . Damage (minor) 4 | . . . . . 4 . . . . . . . . . . . Damage (major) 4 | . . . . . 4 . . . . . . . . . . . Damage (core) 2 | . . . . . 2 . . . . . . . . . . . Siege Activations . | . . . . . . . . . . . . . . . . . Martial Activations . | . . . . . . . . . . . . . . . . . Shielding Activations . | . . . . . . . . . . . . . . . . . Robots Disrupted . | . . . . . . . . . . . . . . . . . Combat Hostiles . | . . . . . . . . . . . . . . . . . Robots Corrupted 3 | . . . . . 1 . . . . . . 2 . . . . Combat Hostiles . | . . . . . . . . . . . . . . . . . Parts Fried 5 | . . . . . . . . . . . . 5 . . . . Impact Corruptions 7 | . . . . . 1 . . . . . . 6 . . . . Robots Melted 2 | . 1 . . . . . . . . . . . . 1 . . Combat Hostiles 2 | . 1 . . . . . . . . . . . . 1 . . Parts Melted 14 | . 2 . 9 . 2 . . . . . . . . 1 . . Heat Transferred 4912 | . 740 . 2581 259 1295 . . . . . . . . 37 . . Parts Sabotaged . | . . . . . . . . . . . . . . . . . Parts Stolen . | . . . . . . . . . . . . . . . . . Parts Stripped . | . . . . . . . . . . . . . . . . . Power Chain Reactions . | . . . . . . . . . . . . . . . . . Alert | -11 -10 -10 -9 -8 -7 -7 -7 -6 -6 -6 -6 -5 -4 -4 -3 -3 ------- Run | Yrd Mat Min Mat Mat Fac Low Dat Pro Fac Low Low Fac Fac Ext Res Tes Maximum Alert Level 2 | . . . 2 . . . . . . . . . . . . . Low Security (%) 92 | 100 100 100 48 100 100 . . . 100 . . 100 100 100 100 100 Level 1 4 | . . . 33 . . . . . . . . . . . . . Level 2 2 | . . . 18 . . . . . . . . . . . . . Level 3 . | . . . . . . . . . . . . . . . . . Level 4 . | . . . . . . . . . . . . . . . . . Level 5 . | . . . . . . . . . . . . . . . . . High Security . | . . . . . . . . . . . . . . . . . Max Security . | . . . . . . . . . . . . . . . . . Peak Influence 424 | . 85 2 424 165 48 . . . 17 . . 142 51 89 86 7 Initial 165 | . . 2 . 165 26 . . . 2 . . . 51 . 13 . Average 54 | . 23 . 225 79 8 . . . 4 . . 92 20 38 9 . Influence Increases 1861 | . 155 . 630 92 240 . . 105 34 45 . 336 . 106 111 7 Destroy 0b10 Robot/C 700 | . 100 . 360 60 100 . . 60 . . . . . 20 . . Destroy 0b10 Robot/NC 70 | . 10 . 25 5 10 . . . . . . 20 . . . . Destroy Leader 176 | . 24 . 96 12 42 . . . . . . 2 . . . . Successful Hack 41 | . 5 . . . 12 . . . . . . 10 . 7 . 7 Disable Machine 60 | . . . 15 . . . . . . . . 45 . . . . Destroy Structure 124 | . 1 . 44 . 1 . . . 4 . . 64 . 4 6 . Partial Spotted 60 | . . . . . . . . . 30 . . 15 . 15 . . Lose Combat Pursuer 630 | . 15 . 90 15 75 . . 45 . 45 . 180 . 60 105 . Influence Decreases 1861 | . 148 7 238 425 290 9 . 100 39 20 25 230 106 80 137 7 Entered New Map 346 | . . 5 . 227 33 4 . . 3 . 6 . 55 . 13 . Time Decay 1128 | . 148 2 218 198 191 5 . 70 36 20 19 90 51 30 43 7 Lost Part 367 | . . . 20 . 66 . . 10 . . . 140 . 50 81 . Lost Ally 20 | . . . . . . . . 20 . . . . . . . . Squads Dispatched 24 | . 1 . 2 2 8 . . . 3 . . 3 1 . 1 3 Investigation 7 | . 1 . . . 2 . . . 2 . . 1 . . . 1 Extermination 4 | . . . . . 3 . . . . . . 1 . . . . Reinforcement 12 | . . . 2 1 3 . . . 1 . . 1 1 . 1 2 Assault . | . . . . . . . . . . . . . . . . . Garrison 1 | . . . . 1 . . . . . . . . . . . . Intercept . | . . . . . . . . . . . . . . . . . Searches Triggered . | . . . . . . . . . . . . . . . . . Data Miner Redirects 2 | . . . . . . . . . 1 . . 1 . . . . Construction Impeded . | . . . . . . . . . . . . . . . . . Haulers Reinforced 1 | . . . . . 1 . . . . . . . . . . . Active Scanning Responses . | . . . . . . . . . . . . . . . . . Cargo Convoy Interrupts . | . . . . . . . . . . . . . . . . . Stealth | -11 -10 -10 -9 -8 -7 -7 -7 -6 -6 -6 -6 -5 -4 -4 -3 -3 --------- Run | Yrd Mat Min Mat Mat Fac Low Dat Pro Fac Low Low Fac Fac Ext Res Tes Distress Signals 5 | . 1 . 1 1 . . . . . . . 1 1 . . . Communications Jammed 1 | . . . . . . . . . . . . . . . 1 . Distress Signals . | . . . . . . . . . . . . . . . . . Times Spotted 178 | . 11 . 29 5 18 . . 22 7 10 . 37 7 9 13 10 Peak Tracking Total 15 | . 3 . 7 6 3 . . 15 5 4 . 15 5 4 11 6 Tactical Retreats 29 | . 1 . 4 1 5 . . 3 2 3 . 6 . 2 2 . ECM-based Alert Blocks 39 | . . . . . . . . 15 5 11 . 8 . . . . Traps | -11 -10 -10 -9 -8 -7 -7 -7 -6 -6 -6 -6 -5 -4 -4 -3 -3 ------- Run | Yrd Mat Min Mat Mat Fac Low Dat Pro Fac Low Low Fac Fac Ext Res Tes Traps Triggered 11 | . 1 . 2 . 4 . . . . . . . . . . 4 Indirectly . | . . . . . . . . . . . . . . . . . Trap Hack Attempts . | . . . . . . . . . . . . . . . . . Triggered . | . . . . . . . . . . . . . . . . . Disarmed . | . . . . . . . . . . . . . . . . . Reprogrammed . | . . . . . . . . . . . . . . . . . Reused . | . . . . . . . . . . . . . . . . . Traps Extracted . | . . . . . . . . . . . . . . . . . Installed . | . . . . . . . . . . . . . . . . . Triggered . | . . . . . . . . . . . . . . . . . Machines | -11 -10 -10 -9 -8 -7 -7 -7 -6 -6 -6 -6 -5 -4 -4 -3 -3 ---------- Run | Yrd Mat Min Mat Mat Fac Low Dat Pro Fac Low Low Fac Fac Ext Res Tes Machines Disabled 4 | . . . 1 . . . . . . . . 3 . . . . Max in Single Turn 3 | . . . 1 . . . . . . . . 3 . . . . Machines Repaired . | . . . . . . . . . . . . . . . . . Machines Dismantled . | . . . . . . . . . . . . . . . . . Machines Sabotaged . | . . . . . . . . . . . . . . . . . Overloaded Fab Kills . | . . . . . . . . . . . . . . . . . Hacking | -11 -10 -10 -9 -8 -7 -7 -7 -6 -6 -6 -6 -5 -4 -4 -3 -3 --------- Run | Yrd Mat Min Mat Mat Fac Low Dat Pro Fac Low Low Fac Fac Ext Res Tes Machines Accessed 27 | . 2 . 2 2 4 . 4 . 3 . 2 1 2 2 . 3 Terminals 15 | . 2 . . 2 4 . . . . . . . 2 2 . 3 Fabricators 1 | . . . . . . . . . 1 . . . . . . . Repair Stations 2 | . . . . . . . . . 1 . . 1 . . . . Recycling Units 2 | . . . 1 . . . . . 1 . . . . . . . Scanalyzers 1 | . . . 1 . . . . . . . . . . . . . Garrison Access . | . . . . . . . . . . . . . . . . . Total Hacks 76 | . 2 . 2 4 10 . 27 . 7 . 8 3 3 3 . 7 Successful 56 | . 2 . 2 1 2 . 27 . 6 . 8 1 2 2 . 3 Failed 20 | . . . . 3 8 . . . 1 . . 2 1 1 . 4 Catastrophic 3 | . . . . . 1 . . . . . . . . 1 . 1 Database Lockouts . | . . . . . . . . . . . . . . . . . Manual . | . . . . . . . . . . . . . . . . . Terminals 29 | . 2 . . 4 10 . . . . . . . 3 3 . 7 Fabricators 3 | . . . . . . . . . 3 . . . . . . . Repair Stations 6 | . . . . . . . . . 3 . . 3 . . . . Recycling Units 2 | . . . 1 . . . . . 1 . . . . . . . Scanalyzers 1 | . . . 1 . . . . . . . . . . . . . Garrison Access . | . . . . . . . . . . . . . . . . . Terminal Hacks 47 | . 2 . . 1 2 . 27 . . . 8 . 2 2 . 3 Record 22 | . . . . . 1 . 11 . . . 7 . . . . 3 Part Schematic 10 | . . . . . . . 10 . . . . . . . . . Robot Schematic 3 | . . . . . . . 3 . . . . . . . . . Robot Analysis 1 | . 1 . . . . . . . . . . . . . . . Prototype ID Bank 5 | . 1 . . 1 . . 3 . . . . . . . . . Open Door 3 | . . . . . . . . . . . 1 . 1 1 . . Open DSF 1 | . . . . . . . . . . . . . 1 . . . Maintenance Status 1 | . . . . . . . . . . . . . . 1 . . Zone Layout 1 | . . . . . 1 . . . . . . . . . . . Fabricator Hacks 2 | . . . . . . . . . 2 . . . . . . . Load Schematic 1 | . . . . . . . . . 1 . . . . . . . Build 1 | . . . . . . . . . 1 . . . . . . . Repair Station Hacks 4 | . . . . . . . . . 3 . . 1 . . . . Scan Component 3 | . . . . . . . . . 2 . . 1 . . . . Repair 1 | . . . . . . . . . 1 . . . . . . . Recycling Unit Hacks 2 | . . . 1 . . . . . 1 . . . . . . . Report Inventory 2 | . . . 1 . . . . . 1 . . . . . . . Scanalyzer 1 | . . . 1 . . . . . . . . . . . . . Retrieve Study 1 | . . . 1 . . . . . . . . . . . . . Garrison Access Hacks . | . . . . . . . . . . . . . . . . . Unauthorized Hacks . | . . . . . . . . . . . . . . . . . Terminals . | . . . . . . . . . . . . . . . . . Fabricators . | . . . . . . . . . . . . . . . . . Repair Stations . | . . . . . . . . . . . . . . . . . Recycling Units . | . . . . . . . . . . . . . . . . . Scanalyzers . | . . . . . . . . . . . . . . . . . Garrison Access . | . . . . . . . . . . . . . . . . . Data Cores Recovered 1 | . 1 . . . . . . . . . . . . . . . Used . | . . . . . . . . . . . . . . . . . Hacking Detections 13 | . . . . 2 3 . . . 2 . . 1 1 1 . 3 Full Trace Events 7 | . . . . 1 2 . . . 2 . . 1 . . . 1 Feedback Events 2 | . . . . . 1 . . . 1 . . . . . . . Corruption 1 | . . . . . 1 . . . . . . . . . . . Hackware Fried 1 | . . . . . . . . . 1 . . . . . . . Feedback Blocked . | . . . . . . . . . . . . . . . . . Robot Schematics Acquired 3 | . . . . . . . 3 . . . . . . . . . Robots Built . | . . . . . . . . . . . . . . . . . Authchips . | . . . . . . . . . . . . . . . . . Time 67 | . . . . . . . . . 67 . . . . . . . Total Robot Build Rating . | . . . . . . . . . . . . . . . . . Part Schematics Acquired 10 | . . . . . . . 10 . . . . . . . . . Parts Built . | . . . . . . . . . . . . . . . . . Authchips . | . . . . . . . . . . . . . . . . . Time . | . . . . . . . . . . . . . . . . . Total Part Build Rating . | . . . . . . . . . . . . . . . . . Part Studies Acquired . | . . . . . . . . . . . . . . . . . Parts Repaired 1 | . . . . . . . . . 1 . . . . . . . Time 35 | . . . . . . . . . 35 . . . . . . . Parts Recycled . | . . . . . . . . . . . . . . . . . Recycled Matter . | . . . . . . . . . . . . . . . . . Retrieved Matter . | . . . . . . . . . . . . . . . . . Retrieved Components . | . . . . . . . . . . . . . . . . . Parts Scanalyzed . | . . . . . . . . . . . . . . . . . Part Schematics Acquired . | . . . . . . . . . . . . . . . . . Parts Damaged . | . . . . . . . . . . . . . . . . . Bothacking | -11 -10 -10 -9 -8 -7 -7 -7 -6 -6 -6 -6 -5 -4 -4 -3 -3 ------------ Run | Yrd Mat Min Mat Mat Fac Low Dat Pro Fac Low Low Fac Fac Ext Res Tes Used RIF Installer . | . . . . . . . . . . . . . . . . . Robots Hacked . | . . . . . . . . . . . . . . . . . Non-combat . | . . . . . . . . . . . . . . . . . Combat . | . . . . . . . . . . . . . . . . . Robot Hacks Applied . | . . . . . . . . . . . . . . . . . Relay Couplers Released . | . . . . . . . . . . . . . . . . . Fabnet Peak Effective % . | . . . . . . . . . . . . . . . . . Robots Rewired . | . . . . . . . . . . . . . . . . . Allies Hacked . | . . . . . . . . . . . . . . . . . Hacks Repelled . | . . . . . . . . . . . . . . . . . Allies | -11 -10 -10 -9 -8 -7 -7 -7 -6 -6 -6 -6 -5 -4 -4 -3 -3 -------- Run | Yrd Mat Min Mat Mat Fac Low Dat Pro Fac Low Low Fac Fac Ext Res Tes Total Allies 2 | . . 1 . . . . . 1 . . . . . . . . Largest Group 1 | . . 1 1 . . . . 1 . . . . . . . . Highest-Rated Group 96 | . . 31 31 . . . . 96 . . . . . . . . Highest-Rated Ally 96 | . . 31 31 . . . . 96 . . . . . . . . Total Orders . | . . . . . . . . . . . . . . . . . Ally Attacks 23 | . . . 5 . . . . 18 . . . . . . . . Total Damage 692 | . . . 42 . . . . 650 . . . . . . . . Kills 4 | . . . 1 . . . . 3 . . . . . . . . Allies Corrupted . | . . . . . . . . . . . . . . . . . Allies Melted 1 | . . . . . . . . 1 . . . . . . . . Intel | -11 -10 -10 -9 -8 -7 -7 -7 -6 -6 -6 -6 -5 -4 -4 -3 -3 ------- Run | Yrd Mat Min Mat Mat Fac Low Dat Pro Fac Low Low Fac Fac Ext Res Tes Active Infowar (turns) 1641 | . . 112 432 350 483 36 30 56 25 43 . 14 . . 60 . Sensors 1484 | . . 112 432 350 480 36 30 44 . . . . . . . . Jamming 60 | . . . . . . . . . . . . . . . 60 . ECM 103 | . . . . . 3 . . 18 25 43 . 14 . . . . Robot Analysis Total 1 | . 1 . . . . . . . . . . . . . . . Derelict Logs Recovered 2 | . . . . . . 1 . . . 1 . . . . . . Drone Launches . | . . . . . . . . . . . . . . . . . Drone Recoveries . | . . . . . . . . . . . . . . . . . Exploration | -11 -10 -10 -9 -8 -7 -7 -7 -6 -6 -6 -6 -5 -4 -4 -3 -3 ------------- Run | Yrd Mat Min Mat Mat Fac Low Dat Pro Fac Low Low Fac Fac Ext Res Tes Turns Passed 3953 | 70 452 163 508 406 914 36 30 153 147 122 63 198 147 94 295 155 Spaces Moved 5114 | 48 318 121 258 194 1056 129 116 535 254 409 203 418 321 197 272 265 Core 131 | 5 . . 1 . 5 . . . . . . 9 . 5 24 82 Treads 600 | . . . 158 194 248 . . . . . . . . . . . Legs 487 | 43 318 121 5 . . . . . . . . . . . . . Wheels 259 | . . . . . . . . . . . . . . . 248 11 Hover . | . . . . . . . . . . . . . . . . . Flight 3637 | . . . 94 . 803 129 116 535 254 409 203 409 321 192 . 172 Fastest Speed 26 | 50 120 120 31 170 26 26 26 26 26 26 29 31 34 37 50 40 Average Speed 60 | 117 120 120 118 170 66 26 26 26 26 27 30 36 37 42 86 53 Slowest Speed 700 | 190 120 120 250 170 250 26 26 29 26 29 31 50 40 350 130 700 Overloaded Moves . | . . . . . . . . . . . . . . . . . Propulsion Burnouts . | . . . . . . . . . . . . . . . . . Robots Hopped 16 | . . . . . 4 . . 8 1 . . . 1 . . 2 Potential Cave-ins 1 | . . . 1 . . . . . . . . . . . . . Cave-ins Triggered 1 | . . . . . . . . . . . . 1 . . . . Exploration Rate (%) 32 | 4 57 42 29 19 27 21 75 72 10 58 33 19 9 33 9 37 Regions Visited 16 Branch Regions 8 Pre-discovered Areas 1 | . . . . . . . 1 . . . . . . . . . Known Exits Taken 4 | . . . . . . . . . 1 . 1 1 . . 1 . Unknown Exits Taken 12 | 1 1 1 1 1 1 1 1 1 . 1 . . 1 1 . . Scrap Searched 6 | . . 1 . . . 1 . 1 . 2 1 . . . . . Spaces Dug 16 | . . . . . . . . . 4 . . 8 . . 4 . Terrain Destroyed 92 | . . . 50 . . . . . 4 . . 32 . 2 4 . Melee 16 | . . . . . . . . . 4 . . 8 . . 4 . Projectile 2 | . . . . . . . . . . . . . . 2 . . AOE 74 | . . . 50 . . . . . . . . 24 . . . . Terrain Rammed . | . . . . . . . . . . . . . . . . . Walls Destroyed . | . . . . . . . . . . . . . . . . . Machines Disabled . | . . . . . . . . . . . . . . . . . Actions | -11 -10 -10 -9 -8 -7 -7 -7 -6 -6 -6 -6 -5 -4 -4 -3 -3 --------- Run | Yrd Mat Min Mat Mat Fac Low Dat Pro Fac Low Low Fac Fac Ext Res Tes Total 5683 | 59 365 139 371 243 1203 130 115 539 325 416 203 442 345 204 307 277 Wait 240 | . 21 14 32 12 55 2 . 12 65 6 . . 14 1 5 1 Move 5067 | 47 317 120 257 193 1047 128 115 519 251 408 202 417 318 196 271 261 Hop 15 | . . . . . 4 . . 7 1 . . . 1 . . 2 Pick Up 73 | 6 8 2 6 13 18 . . . 3 1 . 4 6 2 3 1 Fast Attach 45 | 6 . 1 3 . 11 . . . . . 1 3 4 1 12 3 Attach 41 | . . . 6 2 16 . . 1 1 1 . 4 2 . 4 4 Detach 8 | . . . 1 . 6 . . . . . . . . . . 1 Swap 11 | . . . 6 4 1 . . . . . . . . . . . Drop 38 | . 6 2 6 5 14 . . . . . . 4 . 1 . . Fire 109 | . 13 . 54 14 25 . . . . . . . . 3 . . Melee 31 | . . . . . 5 . . . 4 . . 10 . . 12 . Ram 4 | . . . . . . . . . . . . . . . . 4 Kick . | . . . . . . . . . . . . . . . . . Crush 1 | . . . . . 1 . . . . . . . . . . . Escape Stasis . | . . . . . . . . . . . . . . . . . Rewire . | . . . . . . . . . . . . . . . . . Trap . | . . . . . . . . . . . . . . . . . Miscellaneous . | . . . . . . . . . . . . . . . . . Route ------- -11/Scrapyard -10/Materials (discovered 3 exits: *Mat / [*Min] / [*Sub]) -10/Mines -9/Materials -8/Materials -7/Factory -7/Lower Caves -7/Data Miner -6/Proximity Caves -6/Factory -6/Lower Caves -6/Lower Caves -5/Factory (discovered 4 exits: *Fac x3 / Upp) -4/Factory -4/Extension -3/Research (discovered 3 exits: [*Res] / Arm / *Tes) -3/Testing History --------- Turn | Location | Event 8 | -11/Scrapyard | Discovered new exit (range 16) 71 | -11/Scrapyard | Entered Materials 72 | -10/Materials | Met a group of wandering Federalists 151 | -10/Materials | Discovered new exit (range 6) 251 | -10/Materials | Discovered new exit (range 16) 309 | -10/Materials | Build established: Mutant 364 | -10/Materials | Discovered new exit (range 16) 523 | -10/Materials | Entered Mines 526 | -10/Mines | Received a Mining Laser from a helpful Derelict 571 | -10/Mines | Found a damaged Exp. Sensor Array with a note attached 574 | -10/Mines | Found Prototype Device 574 | -10/Mines | Identified Exp. Sensor Array 669 | -10/Mines | Discovered new exit (range 9) 686 | -10/Mines | Entered Materials 686 | -9/Materials | Accompanied by 1 ally 686 | -9/Materials | Evolved 2 slots: Propulsion x2 912 | -9/Materials | Destroyed 7 combat bots 1188 | -9/Materials | Discovered new exit (range 3) 1194 | -9/Materials | Entered another Materials area 1194 | -8/Materials | Evolved 2 slots: Utility x1, Weapon x1 1388 | -8/Materials | Discovered new exit (range 5) 1497 | -8/Materials | Build established: Skirmisher 1545 | -8/Materials | Garrison activated, responded to threat 1600 | -8/Materials | Entered Factory 1600 | -7/Factory | Evolved 2 slots: Power x1, Utility x1 2134 | -7/Factory | Build established: Scavenger-Tank 2173 | -7/Factory | Core integrity fell below 50% 2227 | -7/Factory | Lost 12 parts (2p5n2u3w) 2459 | -7/Factory | Build established: Mutant 2506 | -7/Factory | Core integrity fell below 20% 2507 | -7/Factory | Discovered new exit (range 15) 2514 | -7/Factory | Entered Lower Caves 2531 | -7/Lower Caves | Encountered a Warlord checkpoint 2537 | -7/Lower Caves | Learned 12 Factory zone layouts 2548 | -7/Lower Caves | A Derelict revealed a hidden shortcut to meet someone special 2550 | -7/Lower Caves | Entered Data Miner 2550 | -7/Data Miner | Discovered new exit (range 6) 2555 | -7/Data Miner | Met Data Miner 2565 | -7/Data Miner | Learned location of Section 7 (-2) 2565 | -7/Data Miner | Acquired the access code to Warlord's prototype stash 2570 | -7/Data Miner | Received God Mode back door access code from Data Miner 2580 | -7/Data Miner | Entered Proximity Caves 2588 | -6/Proximity Caves | Attracted the attention of an 0b10 checkpoint 2598 | -6/Proximity Caves | Attracted the attention of an 0b10 base 2655 | -6/Proximity Caves | Lost 3 parts (1p1n1u) 2710 | -6/Proximity Caves | Discovered new exit (range 4) 2733 | -6/Proximity Caves | Entered Factory 2733 | -6/Factory | Evolved 2 slots: Propulsion x2 2734 | -6/Factory | Identified exit to Lower Caves 2772 | -6/Factory | Repaired Faulty Imp. Cesium-ion Thruster 2774 | -6/Factory | Hacking Suite fried by hacking feedback 2792 | -6/Factory | Incoming investigation squad redirected 2880 | -6/Factory | Entered Lower Caves 2923 | -6/Lower Caves | Spotted B-75 Beast 2927 | -6/Lower Caves | Learned location of 1 exit from Factory 3000 | -6/Lower Caves | Discovered new exit (range 8) 3002 | -6/Lower Caves | Entered another Lower Caves area 3027 | -6/Lower Caves | Entered an active Warlord outpost 3031 | -6/Lower Caves | Identified exit to Factory 3031 | -6/Lower Caves | Learned 8 Research zone layouts 3031 | -6/Lower Caves | Learned Factory trap positions 3031 | -6/Lower Caves | Learned Armory trap positions 3065 | -6/Lower Caves | Entered Factory 3065 | -5/Factory | Evolved 2 slots: Utility x2 3066 | -5/Factory | Identified exit to Factory 3067 | -5/Factory | Identified exit to Upper Caves 3068 | -5/Factory | Loaded intel: 120 trap records 3086 | -5/Factory | Incoming investigation squad redirected 3178 | -5/Factory | Lost 3 parts (1p2n) 3197 | -5/Factory | Crushed by falling debris 3216 | -5/Factory | Core integrity fell below 50% 3263 | -5/Factory | Core integrity fell below 20% 3263 | -5/Factory | Entered another Factory area 3263 | -4/Factory | Evolved 2 slots: Utility x2 3293 | -4/Factory | Lost 10 parts (1p6n2u1w) 3409 | -4/Factory | Discovered new exit (range 6) 3410 | -4/Factory | Entered Extension 3486 | -4/Extension | Spotted B-86 Titan 3489 | -4/Extension | Spotted B-86 Titan 3503 | -4/Extension | Discovered new exit (range 3) 3504 | -4/Extension | Entered Research 3504 | -3/Research | Evolved 2 slots: Utility x2 3505 | -3/Research | Identified exit to Armory 3505 | -3/Research | Identified exit to Testing 3533 | -3/Research | Lost 5 parts (3n1u1w) 3730 | -3/Research | Discovered new exit (range 16) 3784 | -3/Research | Core integrity fell below 50% 3799 | -3/Research | Entered Testing 3830 | -3/Testing | Lost 9 parts (2p5n1u1w) 3931 | -3/Testing | Core integrity fell below 20% 3934 | -3/Testing | System corruption reached 10% 3944 | -3/Testing | Spotted Striker 3944 | -3/Testing | Spotted Striker 3954 | -3/Testing | Spotted Alpha 7 3954 | -3/Testing | Destroyed by Striker with Compact Linear Accelerator Last Messages --------------- Door malfunctions. P-80 Master resets P-80 Master, system corruption cleaned. O-24 Administrator: "IFF HANDSHAKE FAILED. SECURING TERMINAL." ALERT: Hostiles spotted, dispatching reinforcements to Terminal T003. System corrupted: Matter fused (-10). Q-thruster destroyed. Slammed into W-44 Eye. Destabilizing: System corrupted (+2). ALERT: Hostiles spotted, dispatching reinforcements to Terminal T009. System corrupted: Heat flow error (+278). P-80 Master resets W-44 Eye, system corruption cleaned. W-44 Eye destroyed. Slammed into Striker. Door malfunctions. Slammed into Striker. Map ----- +----------------------------------------------------+ | | | | | | | | | | | | | | | | | | | | | | | | | | | | | | | | | | | ???????????????????????????#####???????##### | | ??????????????????????????# """#???????# """ | | ??????????????????????????" "#???????# "T" | | ??????????????????????????" ""#???????# | | ??????????????????????????" "#???????# | | ??????????????????????????# """#???????# | | ??????????#""?????######??# ##???????# ! | | ??????????#"" ##%#;;#####/############### | | ??????????#"" /K@ = | | ??????????#" / K =% | | ??????????#" 7## ############## ######## | | ??????????#""" ??###????????????# #??????? | | ??????????#####??????????????????# #??????? | | ?????????????????????????????????# #??????? | | ?????????????????????????????????# #??##### | | ?????????????????????############# #??"" | | ?????????????????????# ! !!! # #?""" ! | | ?????????????????????#] !!! # #?""" | | ?????????????????????# !! # # | | ??????????????????????! """ # # | | ?????????????????????# """ ! + + " | | ?????????????????????# """ ! # # S" | | ?????????????????????#/ !# #| "" | | ?????????????????????############# ######## | | ????????????????????????????????# ####### | | ????????????????????????????????# ] | | ????????????????????????????????# " | | ????????????????????????????????# ####### | | ????????????????????????????????######?????? | | ???????????????????????????????????????????? | | ???????????????????????????????????????????? | | ???????????????????????????????????????????? | | ???????????????????????????????????????????? | +----------------------------------------------------+ Best States ------------- Heat Dissipation 48 Energy Generation 33 Energy Capacity 405 Matter Stores 300 Matter Capacity 300 Sight Range 16 Robot Scan Range 20 Terrain Scan Density 210 ECM Strength 2 Jamming Range 16 Armor Coverage 600 Resistance: KI 20 Propulsion Shielding 66 Evasion (%) 64 Recoil Reduction 4 Offensive Hacking 20 Item Schematics ----------------- Combat Drone Bay | -7/Data Miner | Free Lgt. Regenerative Plating | -7/Data Miner | Free Cld. Cesium-ion Thruster | -7/Data Miner | Free Exp. Weapon Shielding | -7/Data Miner | Free Cld. Plasma Cannon | -7/Data Miner | Free Hvy. Treads | -7/Data Miner | Free Imp. Weapon Cycler | -7/Data Miner | Free Enh. Gauss Cannon | -7/Data Miner | Free Adv. Coolant Injector | -7/Data Miner | Free Adv. Thermal Generator | -7/Data Miner | Free Robot Schematics ------------------ L-41 Fighter | -7/Data Miner | Free M-14 Sweeper | -7/Data Miner | Free H-55 Commando | -7/Data Miner | Free Fabricated ------------ Nothing Repaired ---------- Imp. Cesium-ion Thruster | 31% | -6/Factory Studied --------- None Alien Tech Used ----------------- None Achievements -------------- Batter Up Part-time Excavator The Oracle Challenges ------------ None Game ------ Seed CentriumCryofiberTreads Manual? 0 Play Time 02:03:37 Cumulative 29.5 hours Start 2025.12.17 @ 03:21:56 End 2025.12.17 @ 06:11:35 Sessions 1 Manual Loads 0 Difficulty Rogue Special Mode None Game No. 33 Rogue 33 Adventurer 0 Explorer 0 Win Type - Total 0 Types 0/0/0/0/0/0/0/0/0/0 Lore% 14 Gallery% 20 Achievement% 18 Wizard Run 0 Options --------- Layout 1 ASCII 0 Keyboard 0 Movement Mouse Keybinds 0 Fullscreen 1 Font 16/SmallcapsGlow Map View 50x40 Zoom Use 18% Tactical HUD 0 Map Filters NONE Filters NONE Steam SD RUN: 914a35f3-c831-412b-819c-293a0ef03fbe